fUST/lending_fUST_20250211
["ID","MTS","AMOUNT","RATE_DAILY","PERIOD"]
[352700816,1739253054886,1013.16,0.00012,30]
[352700840,1739254232096,-1235.0,0.00010278,2]
[352700841,1739254232106,-1980.42,0.00010589,2]
[352700842,1739254232116,-400.0,0.00010685,2]
[352700843,1739254232125,-201.321,0.00010739,2]
[352700844,1739254232134,-550.8640071,0.00010848,2]
[352700845,1739254232144,-676.03288151,0.000109,2]
[352700846,1739254232153,-152.0,0.000109,2]
[352700847,1739254232162,-1611.570886,0.0001095,2]
[352700848,1739254232172,-300.0,0.00010956,2]
[352700849,1739254232182,-500.0,0.00010957,2]
[352700850,1739254232191,-500.0,0.00010957,2]
[352700851,1739254232200,-175.24668509,0.00010957,2]
[352700852,1739254232210,-593.57109309,0.00010957,2]
[352700853,1739254232219,-500.0,0.00010957,2]
[352700854,1739254232229,-500.0,0.00010957,2]
[352700856,1739254232238,-431.53506378,0.00010957,2]
[352700857,1739254232247,-898.92,0.00010958,2]
[352700859,1739254232257,-500.0,0.00010958,2]
[352700861,1739254232266,-390.03132111,0.00010958,2]
[352700879,1739254237873,-479.92867889,0.00010958,2]
[352700881,1739254237884,-558.89750844,0.00010958,2]
[352700883,1739254237894,-438.11881267,0.00010958,2]
[352700886,1739254237906,-61.88118733,0.00010958,2]
[352700888,1739254237915,-500.0,0.00010958,2]
[352700890,1739254237924,-500.0,0.00010958,2]
[352700892,1739254237933,-376.55660946,0.00010958,2]
[352700894,1739254237946,-235.59026549,0.00010958,2]
[352700895,1739254237955,-500.0,0.00010958,2]
[352700896,1739254237965,-238.99433101,0.00010958,2]
[352700909,1739254238240,-261.00566899,0.00010958,2]
[352700910,1739254238249,-500.0,0.00010958,2]
[352700911,1739254238259,-500.0,0.00010958,2]
[352700912,1739254238269,-509.34226554,0.00010958,2]
[352700913,1739254238278,-500.0,0.00010958,2]
[352700914,1739254238288,-500.0,0.00010958,2]
[352700915,1739254238297,-500.0,0.00010958,2]
[352700917,1739254238307,-510.86186014,0.00010958,2]
[352700918,1739254238316,-500.0,0.00010958,2]
[352700919,1739254238325,-500.0,0.00010958,2]
[352700920,1739254238334,-501.79594853,0.00010958,2]
[352700921,1739254238344,-500.0,0.00010958,2]
[352700923,1739254238354,-500.0,0.00010958,2]
[352700925,1739254238364,-500.0,0.00010958,2]
[352700926,1739254238373,-868.86,0.00010958,2]
[352700927,1739254238382,-500.0,0.00010958,2]
[352700928,1739254238391,-500.0,0.00010958,2]
[352700929,1739254238400,-163.52956055,0.00010958,2]
[352700930,1739254238409,-538.07745075,0.00010958,2]
[352700931,1739254238419,-500.0,0.00010958,2]
[352700932,1739254238427,-500.0,0.00010958,2]
[352700933,1739254238437,-500.0,0.00010958,2]
[352700934,1739254238446,-500.0,0.00010958,2]
[352700935,1739254238455,-500.0,0.00010958,2]
[352700936,1739254238465,-500.0,0.00010958,2]
[352700937,1739254238474,-500.0,0.00010958,2]
[352700938,1739254238483,-500.0,0.00010958,2]
[352700939,1739254238492,-500.0,0.00010958,2]
[352700940,1739254238501,-500.0,0.00010958,2]
[352700941,1739254238510,-500.0,0.00010958,2]
[352700942,1739254238519,-500.0,0.00010958,2]
[352700943,1739254238528,-500.0,0.00010958,2]
[352700944,1739254238537,-500.0,0.00010958,2]
[352700945,1739254238546,-500.0,0.00010958,2]
[352700946,1739254238555,-500.0,0.00010958,2]
[352700947,1739254238564,-500.0,0.00010958,2]
[352700948,1739254238573,-500.0,0.00010958,2]
[352700949,1739254238582,-500.0,0.00010958,2]
[352700950,1739254238591,-500.0,0.00010958,2]
[352700951,1739254238602,-500.0,0.00010958,2]
[352700952,1739254238611,-500.0,0.00010958,2]
[352700953,1739254238619,-500.0,0.00010958,2]
[352700954,1739254238628,-500.0,0.00010958,2]
[352700955,1739254238637,-500.0,0.00010958,2]
[352700956,1739254238647,-573.96696178,0.00010958,2]
[352700957,1739254238655,-256.18668819,0.00010958,2]
[352700958,1739254238665,-500.0,0.00010958,2]
[352700959,1739254238674,-500.0,0.00010958,2]
[352700960,1739254238683,-556.17,0.00010958,2]
[352700961,1739254238693,-500.0,0.00010958,2]
[352700962,1739254238702,-501.76536996,0.00010958,2]
[352700963,1739254238711,-500.0,0.00010958,2]
[352700964,1739254238720,-217.18726714,0.00010958,2]
[352700965,1739254238734,-392.942,0.00010958,2]
[352700966,1739254238751,-21.13073286,0.00010958,2]
[352700967,1739254238760,-500.0,0.00010958,2]
[352700968,1739254238769,-500.0,0.00010958,2]
[352700969,1739254238778,-500.0,0.00010958,2]
[352700970,1739254238787,-500.0,0.00010958,2]
[352700971,1739254238797,-500.0,0.00010958,2]
[352700972,1739254238807,-800.15,0.00010958,2]
[352700973,1739254238816,-500.0,0.00010958,2]
[352700974,1739254238825,-500.0,0.00010958,2]
[352700975,1739254238835,-500.0,0.00010958,2]
[352700976,1739254238844,-500.0,0.00010958,2]
[352700977,1739254238853,-882.65,0.00010958,2]
[352700978,1739254238862,-500.0,0.00010958,2]
[352700979,1739254238872,-500.0,0.00010958,2]
[352700980,1739254238881,-500.0,0.00010958,2]
[352700981,1739254238890,-500.0,0.00010958,2]
[352700982,1739254238900,-500.0,0.00010958,2]
[352700983,1739254238909,-500.0,0.00010958,2]
[352700984,1739254238919,-500.0,0.00010958,2]
[352700985,1739254238928,-336.34060553,0.00010958,2]
[352700986,1739254238937,-500.0,0.00010958,2]
[352700987,1739254238946,-567.23603412,0.00010958,2]
[352700988,1739254238956,-500.0,0.00010958,2]
[352700989,1739254238965,-500.0,0.00010958,2]
[352700990,1739254238975,-500.0,0.00010958,2]
[352700991,1739254238984,-705.55,0.00010958,2]
[352700992,1739254238993,-500.0,0.00010958,2]
[352700993,1739254239002,-500.0,0.00010958,2]
[352700994,1739254239013,-753.91,0.00010958,2]
[352700995,1739254239023,-500.0,0.00010958,2]
[352700996,1739254239032,-500.0,0.00010958,2]
[352700997,1739254239042,-500.0,0.00010958,2]
[352700998,1739254239051,-500.0,0.00010958,2]
[352700999,1739254239061,-500.0,0.00010958,2]
[352701000,1739254239070,-500.0,0.00010958,2]
[352701001,1739254239079,-500.0,0.00010958,2]
[352701002,1739254239088,-500.0,0.00010958,2]
[352701003,1739254239098,-994.32,0.00010958,2]
[352701004,1739254239107,-835.63,0.00010958,2]
[352701005,1739254239116,-364.22486465,0.00010958,2]
[352701055,1739254242876,-396.0,0.00010808,2]
[352701057,1739254242885,-135.77513535,0.00010958,2]
[352701059,1739254242895,-452.99234075,0.00010958,2]
[352701061,1739254243059,-47.00765925,0.00010958,2]
[352701062,1739254243068,-500.0,0.00010958,2]
[352701063,1739254243078,-500.0,0.00010958,2]
[352701064,1739254243087,-500.0,0.00010958,2]
[352701065,1739254243097,-500.0,0.00010958,2]
[352701066,1739254243109,-500.0,0.00010958,2]
[352701067,1739254243119,-1126.22,0.00010958,2]
[352701068,1739254243129,-500.0,0.00010958,2]
[352701069,1739254243138,-500.0,0.00010958,2]
[352701070,1739254243148,-247.53799712,0.00010958,2]
[352701205,1739254246077,-252.46200288,0.00010958,2]
[352701207,1739254246087,-500.0,0.00010958,2]
[352701208,1739254246097,-339.60193689,0.00010958,2]
[352701209,1739254246118,-160.39806311,0.00010958,2]
[352701210,1739254246127,-500.0,0.00010958,2]
[352701211,1739254246137,-500.0,0.00010958,2]
[352701212,1739254246147,-119.50193689,0.00010958,2]
[352701318,1739255432179,-776.96701125,8.869e-05,2]
[352701320,1739255432189,-357.78135085,8.959e-05,2]
[352701322,1739255432198,-310.2948148,9.905e-05,2]
[352701324,1739255432207,-1532.89786218,0.00010452,2]
[352701326,1739255432216,-757.52282,0.00010461,2]
[352701328,1739255432227,-600.0,0.0001052,2]
[352701330,1739255432236,-600.88500657,0.00010629,2]
[352701332,1739255432248,-300.0,0.00010699,2]
[352701334,1739255432258,-154.457556,0.000107,2]
[352701336,1739255432267,-153.0,0.000107,2]
[352701338,1739255432276,-153.0,0.000107,2]
[352701340,1739255432286,-153.0,0.000107,2]
[352701342,1739255432295,-202.9539992,0.000107,2]
[352701346,1739255432308,-309.1472928,0.000107,2]
[352701349,1739255432318,-153.0,0.000107,2]
[352701353,1739255432328,-287.9486019,0.000107,2]
[352701356,1739255432338,-153.0,0.000107,2]
[352701359,1739255432347,-153.0,0.000107,2]
[352701362,1739255432357,-153.0,0.000107,2]
[352701365,1739255432366,-153.0,0.000107,2]
[352701368,1739255432376,-153.0,0.000107,2]
[352701371,1739255432385,-329.4513059,0.000107,2]
[352701374,1739255432395,-153.0,0.00010752,2]
[352701377,1739255432404,-153.0,0.00010752,2]
[352701380,1739255432414,-6256.99622331,0.00010781,2]
[352701382,1739255432427,-314.54692683,0.00010781,2]
[352701384,1739255432439,-867.15438264,0.00010781,2]
[352701387,1739255432448,-188.21561736,0.00010808,2]
[352701390,1739255432460,-207.78438264,0.00010808,2]
[352701392,1739255432470,-367.2426714,0.00010848,2]
[352701394,1739255432479,-3000.0,0.00010858,2]
[352701396,1739255432488,-318.66250715,0.00010957,2]
[352701398,1739255432498,-161.057,0.00010957,2]
[352701400,1739255432507,-500.0,0.00010957,2]
[352701402,1739255432516,-500.0,0.00010957,2]
[352701404,1739255432526,-500.0,0.00010957,2]
[352701406,1739255432535,-222.34214223,0.00010957,2]
[352701408,1739255432544,-255.55077247,0.00010957,2]
[352701668,1739255437988,-244.44922753,0.00010957,2]
[352701669,1739255437998,-255.23769833,0.00010957,2]
[352701670,1739255438008,-500.0,0.00010957,2]
[352701672,1739255438017,-500.0,0.00010957,2]
[352701674,1739255438026,-500.0,0.00010957,2]
[352701675,1739255438035,-500.0,0.00010957,2]
[352701677,1739255438045,-500.0,0.00010957,2]
[352701679,1739255438054,-186.3084165,0.00010957,2]
[352701681,1739255438064,-500.0,0.00010958,2]
[352701683,1739255438073,-500.0,0.00010958,2]
[352701685,1739255438083,-500.0,0.00010958,2]
[352701687,1739255438092,-500.0,0.00010958,2]
[352701689,1739255438102,-500.0,0.00010958,2]
[352701691,1739255438111,-500.0,0.00010958,2]
[352701693,1739255438121,-500.0,0.00010958,2]
[352701695,1739255438131,-500.0,0.00010958,2]
[352701697,1739255438140,-500.0,0.00010958,2]
[352701698,1739255438150,-500.0,0.00010958,2]
[352701700,1739255438159,-314.54234613,0.00010958,2]
[352701702,1739255438169,-500.0,0.00010958,2]
[352701704,1739255438178,-500.0,0.00010958,2]
[352701706,1739255438187,-500.0,0.00010958,2]
[352701708,1739255438197,-500.0,0.00010958,2]
[352701709,1739255438207,-500.0,0.00010958,2]
[352701711,1739255438216,-500.0,0.00010958,2]
[352701713,1739255438226,-500.0,0.00010958,2]
[352701715,1739255438235,-336.70730774,0.00010958,2]
[352701717,1739255438245,-500.0,0.00010958,2]
[352701719,1739255438257,-500.0,0.00010958,2]
[352701721,1739255438266,-500.0,0.00010958,2]
[352701723,1739255438275,-500.0,0.00010958,2]
[352701725,1739255438285,-500.0,0.00010958,2]
[352701727,1739255438294,-500.0,0.00010958,2]
[352701729,1739255438303,-538.81435722,0.00010958,2]
[352701730,1739255438313,-500.0,0.00010958,2]
[352701732,1739255438322,-500.0,0.00010958,2]
[352701734,1739255438332,-500.0,0.00010958,2]
[352701736,1739255438343,-500.0,0.00010958,2]
[352701738,1739255438352,-500.0,0.00010958,2]
[352701740,1739255438362,-500.0,0.00010958,2]
[352701741,1739255438372,-500.0,0.00010958,2]
[352701743,1739255438382,-500.0,0.00010958,2]
[352701745,1739255438391,-500.0,0.00010958,2]
[352701747,1739255438401,-500.0,0.00010958,2]
[352701749,1739255438410,-500.0,0.00010958,2]
[352701751,1739255438420,-500.0,0.00010958,2]
[352701753,1739255438429,-349.38769996,0.00010958,2]
[352701757,1739255438466,-150.61230004,0.00010958,2]
[352701759,1739255438476,-500.0,0.00010958,2]
[352701761,1739255438486,-500.0,0.00010958,2]
[352701763,1739255438495,-467.56066081,0.00010958,2]
[352701765,1739255438506,-500.0,0.00010958,2]
[352701767,1739255438515,-500.0,0.00010958,2]
[352701769,1739255438526,-500.0,0.00010958,2]
[352701771,1739255438535,-598.03715753,0.00010958,2]
[352701773,1739255438545,-500.0,0.00010958,2]
[352701775,1739255438555,-500.0,0.00010958,2]
[352701776,1739255438564,-500.0,0.00010958,2]
[352701778,1739255438575,-500.0,0.00010958,2]
[352701780,1739255438584,-500.0,0.00010958,2]
[352701782,1739255438595,-500.0,0.00010958,2]
[352701798,1739255438742,-500.0,0.00010958,2]
[352701799,1739255438752,-500.0,0.00010958,2]
[352701800,1739255438762,-500.0,0.00010958,2]
[352701801,1739255438771,-267.72469916,0.00010958,2]
[352701802,1739255438783,-232.27530084,0.00010958,2]
[352701803,1739255438792,-500.0,0.00010958,2]
[352701804,1739255438801,-500.0,0.00010958,2]
[352701805,1739255438811,-500.0,0.00010958,2]
[352701806,1739255438820,-443.08457728,0.00010958,2]
[352702697,1739255590933,1000.0,0.00016,120]
[352702703,1739256124117,21909.47098539,0.00016,120]
[352702760,1739256632626,-400.0,0.00010685,2]
[352702762,1739256632636,-161.057,0.00010739,2]
[352702764,1739256632645,-7438.69753278,0.00010835,2]
[352702766,1739256632656,-244.8284476,0.00010848,2]
[352702768,1739256632666,-214.02958203,0.00010858,2]
[352702770,1739256632675,-219.20795196,0.00010858,2]
[352702772,1739256632686,-151.0,0.000109,3]
[352702774,1739256632698,-151.0,0.000109,2]
[352702776,1739256632707,-151.0,0.000109,2]
[352702778,1739256632715,-151.63863056,0.000109,3]
[352702780,1739256632726,-2002.18020155,0.0001095,2]
[352703434,1739256640450,-396.0,0.00010808,2]
[352703436,1739256640460,-3331.03955754,0.0001095,2]
[352703494,1739256643318,-396.91747556,0.0001095,2]
[352703497,1739256643531,-983.33,0.0001095,2]
[352703498,1739256643543,-4741.54000545,0.0001095,2]
[352703499,1739256643552,-151.0,0.00010951,2]
[352703500,1739256643562,-300.0,0.00010957,2]
[352703501,1739256643572,-500.0,0.00010958,2]
[352703502,1739256643582,-500.0,0.00010958,2]
[352703503,1739256643591,-529.82955612,0.00010958,2]
[352703504,1739256643601,-500.0,0.00010958,2]
[352703505,1739256643610,-534.00915947,0.00010958,2]
[352703506,1739256643620,-500.0,0.00010958,2]
[352703507,1739256643629,-522.02212698,0.00010958,2]
[352703508,1739256643638,-500.62921955,0.00010958,2]
[352703509,1739256643648,-506.52248829,0.00010958,2]
[352703510,1739256643659,-500.0,0.00010958,2]
[352703511,1739256643674,-500.0,0.00010958,2]
[352703512,1739256643687,-500.0,0.00010958,2]
[352703513,1739256643696,-500.0,0.00010958,2]
[352703514,1739256643706,-500.0,0.00010958,2]
[352703515,1739256643716,-500.0,0.00010958,2]
[352703516,1739256643727,-377.27937376,0.00010958,2]
[352703517,1739256643736,-396.3542035,0.00010958,2]
[352703556,1739256646351,-500.0,0.00010958,2]
[352703558,1739256646361,-500.0,0.00010958,2]
[352703560,1739256646371,-501.61670936,0.00010958,2]
[352703562,1739256646380,-308.95222298,0.00010958,2]
[352703564,1739256646390,-502.95,0.00010958,2]
[352703566,1739256646400,-500.0,0.00010958,2]
[352703568,1739256646409,-500.0,0.00010958,2]
[352703570,1739256646420,-500.0,0.00010958,2]
[352703572,1739256646430,-500.0,0.00010958,2]
[352703574,1739256646439,-500.0,0.00010958,2]
[352703576,1739256646449,-195.60719734,0.00010958,2]
[352704054,1739257832677,-300.0,9.733e-05,2]
[352704056,1739257832687,-4371.21660243,9.734e-05,2]
[352704061,1739257832726,-15500.0,9.734e-05,2]
[352704063,1739257832738,-448.46367761,9.734e-05,2]
[352704212,1739257838301,-4580.31971996,9.734e-05,2]
[352704214,1739257838311,-483.7177131,9.973e-05,2]
[352704216,1739257838321,-194.8067823,9.979e-05,2]
[352704217,1739257838331,-400.0,0.00010685,2]
[352704219,1739257838340,-420.0,0.00010706,2]
[352704222,1739257838350,-163.2189651,0.00010848,2]
[352704224,1739257838359,-3477.13681954,0.000109,2]
[352704225,1739257838468,-4507.85318046,0.000109,2]
[352704226,1739257838477,-190.0,0.000109,2]
[352704227,1739257838487,-407.57474546,0.00010957,2]
[352704228,1739257838496,-491.02023765,0.00010957,2]
[352704229,1739257838505,-501.26444297,0.00010958,2]
[352704230,1739257838515,-44.09441315,0.00010958,2]
[352704296,1739257840903,-315.88628286,0.00010958,2]
[352704298,1739257840912,-510.50862429,0.00010958,2]
[352704300,1739257840922,-220.60717171,0.00010958,2]
[352704302,1739257840931,-502.05839819,0.00010958,2]
[352704304,1739257840942,-614.33411503,0.00010958,2]
[352704306,1739257840951,-500.0,0.00010958,2]
[352704308,1739257840960,-503.63042118,0.00010958,2]
[352704310,1739257840970,-502.43349473,0.00010958,2]
[352704312,1739257840981,-500.0,0.00010958,2]
[352704314,1739257840990,-500.0,0.00010958,2]
[352704316,1739257841000,-500.0,0.00010958,2]
[352704318,1739257841009,-502.74936626,0.00010958,2]
[352704320,1739257841019,-854.54,0.00010958,2]
[352704322,1739257841028,-501.66182986,0.00010958,2]
[352704324,1739257841037,-500.0,0.00010958,2]
[352704326,1739257841046,-500.0,0.00010958,2]
[352704328,1739257841056,-502.0751971,0.00010958,2]
[352704331,1739257841065,-501.47755906,0.00010958,2]
[352704333,1739257841074,-500.0,0.00010958,2]
[352704335,1739257841084,-500.0,0.00010958,2]
[352704337,1739257841094,-500.0,0.00010958,2]
[352704339,1739257841105,-496.95271164,0.00010958,2]
[352704340,1739257841115,-231.27621199,0.00010958,2]
[352704341,1739257841124,-500.0,0.00010958,2]
[352704342,1739257841134,-500.0,0.00010958,2]
[352704343,1739257841145,-500.0,0.00010958,2]
[352704344,1739257841154,-501.67134132,0.00010958,2]
[352704345,1739257841164,-390.71979455,0.00010958,2]
[352704346,1739257841175,-574.53485676,0.00010958,2]
[352704347,1739257841184,-361.64299164,0.00010958,2]
[352704348,1739257841194,-500.0,0.00010958,2]
[352704349,1739257841203,-500.0,0.00010958,2]
[352704350,1739257841213,-500.0,0.00010958,2]
[352704351,1739257841222,-500.0,0.00010958,2]
[352704352,1739257841232,-500.0,0.00010958,2]
[352704353,1739257841242,-500.0,0.00010958,2]
[352704354,1739257841252,-500.0,0.00010958,2]
[352704355,1739257841261,-500.0,0.00010958,2]
[352704356,1739257841271,-500.0,0.00010958,2]
[352704357,1739257841280,-500.0,0.00010958,2]
[352704358,1739257841290,-500.0,0.00010958,2]
[352704359,1739257841299,-500.0,0.00010958,2]
[352704360,1739257841309,-500.0,0.00010958,2]
[352704361,1739257841318,-502.65156198,0.00010958,2]
[352704362,1739257841327,-500.0,0.00010958,2]
[352704364,1739257841337,-500.0,0.00010958,2]
[352704366,1739257841346,-500.0,0.00010958,2]
[352704368,1739257841355,-500.0,0.00010958,2]
[352704370,1739257841364,-500.0,0.00010958,2]
[352704372,1739257841374,-500.0,0.00010958,2]
[352704374,1739257841388,-500.0,0.00010958,2]
[352704376,1739257841397,-500.0,0.00010958,2]
[352704378,1739257841407,-500.0,0.00010958,2]
[352704380,1739257841416,-500.0,0.00010958,2]
[352704382,1739257841425,-500.0,0.00010958,2]
[352704384,1739257841435,-500.0,0.00010958,2]
[352704386,1739257841446,-283.56237865,0.00010958,2]
[352704388,1739257841461,-835.24,0.00010958,2]
[352704390,1739257841471,-500.0,0.00010958,2]
[352704392,1739257841480,-500.0,0.00010958,2]
[352704394,1739257841490,-500.0,0.00010958,2]
[352704396,1739257841499,-500.0,0.00010958,2]
[352704398,1739257841509,-500.0,0.00010958,2]
[352704400,1739257841518,-500.0,0.00010958,2]
[352704402,1739257841527,-500.0,0.00010958,2]
[352704404,1739257841536,-500.0,0.00010958,2]
[352704406,1739257841546,-500.0,0.00010958,2]
[352704408,1739257841556,-500.0,0.00010958,2]
[352704410,1739257841565,-500.0,0.00010958,2]
[352704412,1739257841574,-500.0,0.00010958,2]
[352704414,1739257841583,-500.0,0.00010958,2]
[352704416,1739257841593,-500.0,0.00010958,2]
[352704418,1739257841602,-500.0,0.00010958,2]
[352704420,1739257841612,-925.01,0.00010958,2]
[352704422,1739257841621,-500.0,0.00010958,2]
[352704424,1739257841631,-500.0,0.00010958,2]
[352704426,1739257841640,-557.18,0.00010958,2]
[352704429,1739257841650,-500.0,0.00010958,2]
[352704430,1739257841659,-500.0,0.00010958,2]
[352704432,1739257841668,-615.73529453,0.00010958,2]
[352704435,1739257841678,-705.92,0.00010958,2]
[352704437,1739257841687,-500.0,0.00010958,2]
[352704438,1739257841697,-500.0,0.00010958,2]
[352704441,1739257841707,-500.0,0.00010958,2]
[352704443,1739257841716,-500.0,0.00010958,2]
[352704445,1739257841726,-500.0,0.00010958,2]
[352704447,1739257841735,-500.0,0.00010958,2]
[352704449,1739257841744,-800.69,0.00010958,2]
[352704450,1739257841753,-500.0,0.00010958,2]
[352704452,1739257841763,-500.0,0.00010958,2]
[352704454,1739257841772,-500.0,0.00010958,2]
[352704456,1739257841781,-500.0,0.00010958,2]
[352704458,1739257841791,-500.0,0.00010958,2]
[352704460,1739257841800,-500.0,0.00010958,2]
[352704461,1739257841809,-1041.65,0.00010958,2]
[352704462,1739257841819,-500.0,0.00010958,2]
[352704463,1739257841828,-500.0,0.00010958,2]
[352704465,1739257841838,-500.0,0.00010958,2]
[352704467,1739257841847,-365.60728532,0.00010958,2]
[352704468,1739257841856,-303.7251106,0.00010958,2]
[352704550,1739257843547,-396.0,0.00010808,2]
[352704553,1739257843557,-196.2748894,0.00010958,2]
[352704556,1739257843566,-500.0,0.00010958,2]
[352704559,1739257843576,-500.0,0.00010958,2]
[352704562,1739257843586,-500.0,0.00010958,2]
[352704565,1739257843595,-500.0,0.00010958,2]
[352704568,1739257843606,-500.0,0.00010958,2]
[352704571,1739257843615,-500.0,0.00010958,2]
[352704573,1739257843624,-1128.26,0.00010958,2]
[352704576,1739257843633,-500.0,0.00010958,2]
[352704579,1739257843643,-500.0,0.00010958,2]
[352704582,1739257843652,-500.0,0.00010958,2]
[352704584,1739257843661,-778.71,0.00010958,2]
[352704587,1739257843671,-500.0,0.00010958,2]
[352704589,1739257843680,-500.0,0.00010958,2]
[352704590,1739257843690,-625.70586118,0.00010958,2]
[352704591,1739257843700,-500.0,0.00010958,2]
[352704592,1739257843710,-197.09578045,0.00010958,2]
[352704593,1739257843719,-500.0,0.00010958,2]
[352704594,1739257843729,-1177.83,0.00010958,2]
[352704595,1739257843739,-500.0,0.00010958,2]
[352704596,1739257843749,-506.33,0.00010958,2]
[352704597,1739257843759,-500.0,0.00010958,2]
[352704598,1739257843768,-1554.29,0.00010958,2]
[352704600,1739257843778,-500.0,0.00010958,2]
[352704601,1739257843787,-616.03,0.00010958,2]
[352704602,1739257843797,-500.0,0.00010958,2]
[352704603,1739257843807,-500.0,0.00010958,2]
[352704604,1739257843816,-601.92,0.00010958,2]
[352704605,1739257843826,-500.0,0.00010958,2]
[352704606,1739257843836,-501.74632364,0.00010958,2]
[352704607,1739257843845,-500.0,0.00010958,2]
[352704608,1739257843855,-1218.31,0.00010958,2]
[352704609,1739257843864,-500.0,0.00010958,2]
[352704610,1739257843874,-500.0,0.00010958,2]
[352704612,1739257843884,-500.0,0.00010958,2]
[352704613,1739257843892,-500.0,0.00010958,2]
[352704614,1739257843902,-500.0,0.00010958,2]
[352704615,1739257843911,-421.04357743,0.00010958,2]
[352704646,1739257846588,-79.99028495,0.00010958,2]
[352704648,1739257846598,-500.0,0.00010958,2]
[352704650,1739257846607,-44.79237655,0.00010958,2]
[352704656,1739258257574,1000.0,0.00016,120]
[352704725,1739259032843,-400.0,0.00010685,2]
[352704726,1739259032852,-161.057,0.00010739,2]
[352704727,1739259032862,-163.2189651,0.00010848,2]
[352704728,1739259032871,-300.0,0.00010899,2]
[352704729,1739259032880,-5488.00423916,0.000109,2]
[352704731,1739259032889,-30273.16670378,0.000109,2]
[352704732,1739259032900,-500.0,0.00010958,2]
[352704733,1739259032911,-500.0,0.00010958,2]
[352704734,1739259032920,-500.0,0.00010958,2]
[352704736,1739259032929,-500.0,0.00010958,2]
[352704737,1739259032938,-500.0,0.00010958,2]
[352704738,1739259032947,-500.0,0.00010958,2]
[352704739,1739259032961,-500.0,0.00010958,2]
[352704740,1739259032975,-442.82697379,0.00010958,2]
[352704741,1739259032984,-500.0,0.00010958,2]
[352704742,1739259032993,-500.0,0.00010958,2]
[352704743,1739259033003,-500.0,0.00010958,2]
[352704744,1739259033012,-500.0,0.00010958,2]
[352704745,1739259033021,-500.0,0.00010958,2]
[352704746,1739259033031,-500.0,0.00010958,2]
[352704747,1739259033041,-500.0,0.00010958,2]
[352704748,1739259033050,-500.0,0.00010958,2]
[352704749,1739259033060,-500.0,0.00010958,2]
[352704750,1739259033069,-500.0,0.00010958,2]
[352704751,1739259033077,-505.34154196,0.00010958,2]
[352704752,1739259033086,-500.0,0.00010958,2]
[352704753,1739259033097,-500.0,0.00010958,2]
[352704754,1739259033107,-500.0,0.00010958,2]
[352704755,1739259033117,-500.0,0.00010958,2]
[352704756,1739259033127,-500.0,0.00010958,2]
[352704757,1739259033137,-503.5921941,0.00010958,2]
[352704758,1739259033146,-500.0,0.00010958,2]
[352704759,1739259033156,-500.0,0.00010958,2]
[352704760,1739259033165,-500.0,0.00010958,2]
[352704761,1739259033175,-514.78104545,0.00010958,2]
[352704762,1739259033185,-517.15803869,0.00010958,2]
[352704763,1739259033194,-500.0,0.00010958,2]
[352704764,1739259033204,-500.0,0.00010958,2]
[352704765,1739259033215,-500.0,0.00010958,2]
[352704766,1739259033224,-500.0,0.00010958,2]